[Event "*** Titled Tuesday Blitz"]
[Site "Chess.com"]
[Date "2018.10.02"]
[Round "5"]
[White "Alexander_Moskalenko"]
[Black "petrpalachev"]
[Result "1/2-1/2"]
[WhiteElo "2842"]
[BlackElo "2777"]
[TimeControl "180+2"]
[EndTime "14:03:58 PDT"]
[Termination "Game drawn by agreement"]

1. d4 {[%clk 0:02:56.6]} 1... Nf6 {[%clk 0:03:00.2]} 2. Nf3 {[%clk 0:02:57]}
2... d5 {[%clk 0:03:01.1]} 3. Bf4 {[%clk 0:02:49.4]} 3... c5 {[%clk 0:03:01.9]}
4. e3 {[%clk 0:02:49.2]} 4... Nc6 {[%clk 0:03:02.5]} 5. Nbd2 {[%clk 0:02:44.9]}
5... Qb6 {[%clk 0:03:03.4]} 6. dxc5 {[%clk 0:02:28.5]} 6... Qxb2 {[%clk
0:03:03.3]} 7. Rb1 {[%clk 0:02:30.1]} 7... Qc3 {[%clk 0:03:04]} 8. Bb5 {[%clk
0:02:28.8]} 8... Bd7 {[%clk 0:02:57.8]} 9. O-O {[%clk 0:02:15.4]} 9... g6 {[%clk
0:02:55.4]} 10. Bd3 {[%clk 0:02:06.4]} 10... b6 {[%clk 0:02:39.8]} 11. cxb6
{[%clk 0:02:04.4]} 11... axb6 {[%clk 0:02:41.7]} 12. Rb3 {[%clk 0:02:02.2]}
12... Qc5 {[%clk 0:02:38.9]} 13. Rb5 {[%clk 0:02:02.5]} 13... Qc3 {[%clk
0:02:38.5]} 14. Nb1 {[%clk 0:01:44.9]} 14... Qa1 {[%clk 0:02:39.4]} 15. Rxb6
{[%clk 0:01:46.3]} 15... Qxa2 {[%clk 0:02:37.4]} 16. Nc3 {[%clk 0:01:46.6]}
16... Qa5 {[%clk 0:02:35.9]} 17. Nb5 {[%clk 0:01:44.7]} 17... Qxb6 {[%clk
0:02:27]} 18. Nc7+ {[%clk 0:01:45.7]} 18... Kd8 {[%clk 0:02:28.5]} 19. Nxa8
{[%clk 0:01:47.1]} 19... Qa7 {[%clk 0:02:30.1]} 20. Nc7 {[%clk 0:01:38.5]} 20...
Bg7 {[%clk 0:02:29]} 21. Nb5 {[%clk 0:01:37.1]} 21... Qa4 {[%clk 0:02:28.1]} 22.
Qb1 {[%clk 0:01:33.2]} 22... Nh5 {[%clk 0:02:20.6]} 23. Nbd4 {[%clk 0:01:18.5]}
23... Nxf4 {[%clk 0:02:18.4]} 24. Nxc6+ {[%clk 0:01:18.6]} 24... Bxc6 {[%clk
0:02:15.6]} 25. Qb6+ {[%clk 0:01:08]} 25... Kd7 {[%clk 0:02:16.7]} 26. exf4
{[%clk 0:01:09.1]} 26... Ra8 {[%clk 0:02:08.5]} 27. Ne5+ {[%clk 0:01:00.9]}
27... Bxe5 {[%clk 0:02:08.9]} 28. fxe5 {[%clk 0:01:02.8]} 28... Qa7 {[%clk
0:01:46.4]} 29. Qb4 {[%clk 0:01:03]} 29... Qb8 {[%clk 0:01:47.8]} 30. Qf4 {[%clk
0:00:53]} 30... Ke8 {[%clk 0:01:44.1]} 31. Re1 {[%clk 0:00:47.6]} 31... e6
{[%clk 0:01:39.6]} 32. h3 {[%clk 0:00:44]} 32... Kf8 {[%clk 0:01:38.8]} 33. Re3
{[%clk 0:00:31.5]} 33... Ra1+ {[%clk 0:01:24.3]} 34. Kh2 {[%clk 0:00:31.9]}
34... f5 {[%clk 0:01:25.7]} 35. Qd4 {[%clk 0:00:28.9]} 35... Ra5 {[%clk
0:01:23.2]} 36. Re1 {[%clk 0:00:29]} 36... Qb7 {[%clk 0:01:01.3]} 37. Ra1 {[%clk
0:00:26.5]} 37... Rxa1 {[%clk 0:01:01.9]} 38. Qxa1 {[%clk 0:00:28.4]} 38... g5
{[%clk 0:00:50.8]} 39. Qd4 {[%clk 0:00:29]} 39... h6 {[%clk 0:00:50.7]} 40. h4
{[%clk 0:00:29.6]} 40... Kg7 {[%clk 0:00:47.7]} 41. hxg5 {[%clk 0:00:30.8]}
41... hxg5 {[%clk 0:00:48.5]} 42. f3 {[%clk 0:00:29.8]} 42... Be8 {[%clk
0:00:49.1]} 43. Kg1 {[%clk 0:00:30.4]} 43... Qc7 {[%clk 0:00:48.6]} 44. Kf2
{[%clk 0:00:31.3]} 44... f4 {[%clk 0:00:47.9]} 45. g3 {[%clk 0:00:31.9]} 45...
fxg3+ {[%clk 0:00:48.4]} 46. Kxg3 {[%clk 0:00:33.3]} 46... Bg6 {[%clk
0:00:49.7]} 47. f4 {[%clk 0:00:30.3]} 47... gxf4+ {[%clk 0:00:47.6]} 48. Kxf4
{[%clk 0:00:32.2]} 48... Qf7+ {[%clk 0:00:48.1]} 49. Ke3 {[%clk 0:00:33.4]}
49... Bxd3 {[%clk 0:00:48.5]} 50. cxd3 {[%clk 0:00:34.5]} 50... Qf5 {[%clk
0:00:48.6]} 1/2-1/2

[Event "*** Titled Tuesday Blitz"]
[Site "Chess.com"]
[Date "2018.10.02"]
[Round "5"]
[White "Synctel"]
[Black "Nathan_Filgueiras"]
[Result "1-0"]
[WhiteElo "1992"]
[BlackElo "2186"]
[TimeControl "180+2"]
[EndTime "14:03:58 PDT"]
[Termination "Synctel won by checkmate"]

1. d4 {[%clk 0:03:01.9]} 1... Nf6 {[%clk 0:03:00.6]} 2. Nf3 {[%clk 0:03:02.6]}
2... e6 {[%clk 0:03:01]} 3. Bg5 {[%clk 0:03:00.5]} 3... h6 {[%clk 0:02:59.5]} 4.
Bxf6 {[%clk 0:03:00.8]} 4... Qxf6 {[%clk 0:03:01.4]} 5. e4 {[%clk 0:03:01.4]}
5... Qd8 {[%clk 0:03:02.9]} 6. Bd3 {[%clk 0:02:42]} 6... c5 {[%clk 0:02:57.7]}
7. c3 {[%clk 0:02:18.7]} 7... Be7 {[%clk 0:02:49.4]} 8. O-O {[%clk 0:02:17.6]}
8... O-O {[%clk 0:02:48.3]} 9. Nbd2 {[%clk 0:02:14.4]} 9... d6 {[%clk
0:02:45.6]} 10. Qe2 {[%clk 0:02:09.3]} 10... Nc6 {[%clk 0:02:44.8]} 11. Rad1
{[%clk 0:02:03.8]} 11... e5 {[%clk 0:02:43.1]} 12. Bb5 {[%clk 0:01:15.4]} 12...
Qc7 {[%clk 0:02:27.9]} 13. Bxc6 {[%clk 0:01:11.2]} 13... bxc6 {[%clk 0:02:25.9]}
14. dxe5 {[%clk 0:01:11]} 14... dxe5 {[%clk 0:02:27.8]} 15. Qe3 {[%clk
0:00:41.5]} 15... Be6 {[%clk 0:02:24]} 16. c4 {[%clk 0:00:36]} 16... Rab8 {[%clk
0:02:19.2]} 17. b3 {[%clk 0:00:35.8]} 17... Rfd8 {[%clk 0:02:19.4]} 18. Nb1
{[%clk 0:00:29.2]} 18... Bf6 {[%clk 0:02:07.1]} 19. Nc3 {[%clk 0:00:29.7]} 19...
Qa5 {[%clk 0:01:59.5]} 20. Rfe1 {[%clk 0:00:14.8]} 20... Bg4 {[%clk 0:01:40.6]}
21. h3 {[%clk 0:00:13.2]} 21... Be6 {[%clk 0:01:32.6]} 22. Na4 {[%clk
0:00:10.1]} 22... Bxc4 {[%clk 0:01:14.5]} 23. Nxc5 {[%clk 0:00:10.9]} 23... Bb5
{[%clk 0:01:07.8]} 24. Nd7 {[%clk 0:00:11]} 24... Bg5 {[%clk 0:00:44]} 25. Nxg5
{[%clk 0:00:10.1]} 25... Rxd7 {[%clk 0:00:45.3]} 26. Rxd7 {[%clk 0:00:09.3]}
26... hxg5 {[%clk 0:00:46.6]} 27. Rxa7 {[%clk 0:00:09]} 27... Qb4 {[%clk
0:00:44.9]} 28. Rd1 {[%clk 0:00:08.6]} 28... c5 {[%clk 0:00:37.8]} 29. Qxg5
{[%clk 0:00:08.3]} 29... Qxe4 {[%clk 0:00:33.6]} 30. Rd8+ {[%clk 0:00:07.7]}
30... Rxd8 {[%clk 0:00:34.7]} 31. Qxd8+ {[%clk 0:00:09.4]} 31... Kh7 {[%clk
0:00:36.3]} 32. Ra8 {[%clk 0:00:09.2]} 32... Bc6 {[%clk 0:00:36.2]} 33. Qh8+
{[%clk 0:00:07.6]} 33... Kg6 {[%clk 0:00:37.3]} 34. f3 {[%clk 0:00:08.1]} 34...
Qe1+ {[%clk 0:00:35.8]} 35. Kh2 {[%clk 0:00:09.4]} 35... Qd2 {[%clk 0:00:36.5]}
36. Qh4 {[%clk 0:00:08.5]} 36... f5 {[%clk 0:00:33.4]} 37. Rc8 {[%clk
0:00:04.5]} 37... Qd5 {[%clk 0:00:26.4]} 38. Rc7 {[%clk 0:00:02.2]} 38... e4
{[%clk 0:00:24.8]} 39. Qg3+ {[%clk 0:00:03.4]} 39... Kh5 {[%clk 0:00:23.8]} 40.
Rxg7 {[%clk 0:00:02.6]} 40... f4 {[%clk 0:00:20.6]} 41. Rh7# {[%clk 0:00:03.3]}
1-0

[Event "*** Titled Tuesday Blitz"]
[Site "Chess.com"]
[Date "2018.10.02"]
[Round "5"]
[White "Bauxi435"]
[Black "Thee-Chessboy"]
[Result "1-0"]
[WhiteElo "2428"]
[BlackElo "2302"]
[TimeControl "180+2"]
[EndTime "14:04:01 PDT"]
[Termination "Bauxi435 won by resignation"]

1. d4 {[%clk 0:03:01.9]} 1... Nf6 {[%clk 0:02:59.4]} 2. c4 {[%clk 0:03:01.7]}
2... e6 {[%clk 0:02:58.1]} 3. Nc3 {[%clk 0:03:02.2]} 3... c5 {[%clk 0:02:57.1]}
4. d5 {[%clk 0:03:02.8]} 4... exd5 {[%clk 0:02:57.6]} 5. cxd5 {[%clk 0:03:04.7]}
5... d6 {[%clk 0:02:59.3]} 6. e4 {[%clk 0:03:05.2]} 6... g6 {[%clk 0:02:59.4]}
7. Nge2 {[%clk 0:03:06.3]} 7... Bg7 {[%clk 0:02:59.7]} 8. Ng3 {[%clk 0:03:07]}
8... O-O {[%clk 0:02:59.2]} 9. Be2 {[%clk 0:03:06.5]} 9... a6 {[%clk 0:02:57.7]}
10. a4 {[%clk 0:03:06.4]} 10... Re8 {[%clk 0:02:51.8]} 11. O-O {[%clk
0:03:05.8]} 11... h5 {[%clk 0:02:45.7]} 12. Bg5 {[%clk 0:03:05.8]} 12... Qc7
{[%clk 0:02:45]} 13. Qd2 {[%clk 0:03:04.1]} 13... Nbd7 {[%clk 0:02:37]} 14. f4
{[%clk 0:02:59.5]} 14... Nh7 {[%clk 0:02:14.4]} 15. Bh4 {[%clk 0:02:58.4]} 15...
c4 {[%clk 0:01:57.1]} 16. e5 {[%clk 0:02:54.8]} 16... dxe5 {[%clk 0:01:55]} 17.
f5 {[%clk 0:02:55.9]} 17... Ndf8 {[%clk 0:01:47.8]} 18. fxg6 {[%clk 0:02:37.9]}
18... fxg6 {[%clk 0:01:44.8]} 19. Nxh5 {[%clk 0:02:24.8]} 19... gxh5 {[%clk
0:01:38.5]} 20. Bxh5 {[%clk 0:02:26.7]} 20... Ng6 {[%clk 0:01:24.5]} 21. d6
{[%clk 0:02:12.3]} 21... Qb6+ {[%clk 0:01:10.5]} 22. Bf2 {[%clk 0:02:12.2]}
22... Qc6 {[%clk 0:01:07.5]} 23. Bxg6 {[%clk 0:02:10.9]} 23... Re6 {[%clk
0:01:01.2]} 24. Qc2 {[%clk 0:02:02.2]} 24... Nf8 {[%clk 0:00:58.2]} 25. Be4
{[%clk 0:02:02.7]} 25... Qxd6 {[%clk 0:00:57.4]} 26. Rad1 {[%clk 0:02:03.3]}
26... Qe7 {[%clk 0:00:53.2]} 27. Bd5 {[%clk 0:02:03.8]} 27... Kh8 {[%clk
0:00:50.9]} 28. Bxe6 {[%clk 0:02:00.3]} 28... Bxe6 {[%clk 0:00:52.8]} 29. Qe4
{[%clk 0:01:50.5]} 29... Nh7 {[%clk 0:00:46.3]} 30. Bh4 {[%clk 0:01:43.5]} 30...
Qe8 {[%clk 0:00:42.1]} 31. Qxb7 {[%clk 0:01:33.9]} 31... Rb8 {[%clk 0:00:39.4]}
32. Qxa6 {[%clk 0:01:34.8]} 32... Qg6 {[%clk 0:00:29.5]} 33. Rf2 {[%clk
0:01:28]} 33... Qg4 {[%clk 0:00:21.9]} 34. Qa7 {[%clk 0:01:18.7]} 34... Rg8
{[%clk 0:00:21.3]} 35. Bg3 {[%clk 0:01:18]} 35... Ng5 {[%clk 0:00:20]} 36. Qe3
{[%clk 0:01:15.6]} 36... Bh6 {[%clk 0:00:18.6]} 37. Qxe5+ {[%clk 0:01:15.1]}
37... Kh7 {[%clk 0:00:18.9]} 38. Re1 {[%clk 0:01:08.3]} 38... Rg7 {[%clk
0:00:18.1]} 39. Ne4 {[%clk 0:01:05]} 39... Nxe4 {[%clk 0:00:17.7]} 40. Qxe4+
{[%clk 0:01:05.6]} 40... Qxe4 {[%clk 0:00:17.6]} 41. Rxe4 {[%clk 0:01:07.5]}
41... Bd5 {[%clk 0:00:19.1]} 42. Rd4 {[%clk 0:01:07.9]} 42... Rd7 {[%clk
0:00:19.5]} 43. Bf4 {[%clk 0:01:04.1]} 43... Bg7 {[%clk 0:00:17.3]} 44. Rd1
{[%clk 0:01:04.4]} 44... Bf8 {[%clk 0:00:16]} 45. Rfd2 {[%clk 0:01:04.1]} 45...
Bc5+ {[%clk 0:00:16.5]} 46. Kh1 {[%clk 0:00:58.7]} 46... c3 {[%clk 0:00:16.2]}
47. bxc3 {[%clk 0:00:58.6]} 1-0

[Event "*** Titled Tuesday Blitz"]
[Site "Chess.com"]
[Date "2018.10.02"]
[Round "5"]
[White "sergeikim"]
[Black "Fins0905"]
[Result "0-1"]
[WhiteElo "2442"]
[BlackElo "2571"]
[TimeControl "180+2"]
[EndTime "14:04:07 PDT"]
[Termination "Fins0905 won by resignation"]

1. d4 {[%clk 0:03:01.9]} 1... d5 {[%clk 0:03:00.6]} 2. c4 {[%clk 0:03:02.5]}
2... c6 {[%clk 0:03:01.6]} 3. Nf3 {[%clk 0:03:02.6]} 3... Nf6 {[%clk 0:03:02.9]}
4. Qc2 {[%clk 0:03:03.5]} 4... dxc4 {[%clk 0:03:03.7]} 5. Qxc4 {[%clk
0:03:03.3]} 5... Bf5 {[%clk 0:03:04.9]} 6. e3 {[%clk 0:03:03.7]} 6... e6 {[%clk
0:03:05]} 7. Bd3 {[%clk 0:03:04.6]} 7... Bxd3 {[%clk 0:03:00.8]} 8. Qxd3 {[%clk
0:03:05.5]} 8... Nbd7 {[%clk 0:03:02]} 9. O-O {[%clk 0:03:06.2]} 9... Be7 {[%clk
0:03:02.6]} 10. Nc3 {[%clk 0:03:06.7]} 10... O-O {[%clk 0:03:01.3]} 11. e4
{[%clk 0:03:06.5]} 11... a6 {[%clk 0:02:55]} 12. e5 {[%clk 0:03:05.8]} 12... Nd5
{[%clk 0:02:55.2]} 13. Nxd5 {[%clk 0:03:07.3]} 13... cxd5 {[%clk 0:02:55.4]} 14.
g3 {[%clk 0:03:04]} 14... Rc8 {[%clk 0:02:54.2]} 15. h4 {[%clk 0:02:59.4]} 15...
h6 {[%clk 0:02:51.4]} 16. Bd2 {[%clk 0:02:58.5]} 16... Qb6 {[%clk 0:02:46.6]}
17. b3 {[%clk 0:02:58.7]} 17... Qb5 {[%clk 0:02:30.7]} 18. Qe3 {[%clk
0:02:38.3]} 18... f5 {[%clk 0:02:13.1]} 19. exf6 {[%clk 0:02:35.3]} 19... Rxf6
{[%clk 0:02:14]} 20. Ne1 {[%clk 0:01:55.3]} 20... e5 {[%clk 0:01:32.4]} 21. dxe5
{[%clk 0:01:24.5]} 21... d4 {[%clk 0:01:24.3]} 22. Qd3 {[%clk 0:01:14.8]} 22...
Nxe5 {[%clk 0:00:58.6]} 23. Qxb5 {[%clk 0:00:54.5]} 23... axb5 {[%clk
0:01:00.5]} 24. f4 {[%clk 0:00:47.9]} 24... Ng4 {[%clk 0:00:55.1]} 25. Nd3
{[%clk 0:00:38.8]} 25... Rc2 {[%clk 0:00:54.9]} 26. Rfd1 {[%clk 0:00:28.9]}
26... h5 {[%clk 0:00:48]} 27. a4 {[%clk 0:00:26.5]} 27... bxa4 {[%clk
0:00:45.2]} 28. bxa4 {[%clk 0:00:23.7]} 28... Ne3 {[%clk 0:00:30.6]} 29. Bxe3
{[%clk 0:00:23.8]} 29... dxe3 {[%clk 0:00:32.5]} 30. Re1 {[%clk 0:00:21.8]}
30... Rc3 {[%clk 0:00:28.3]} 31. Rad1 {[%clk 0:00:21.6]} 31... Rg6 {[%clk
0:00:26.2]} 32. Kg2 {[%clk 0:00:21.5]} 32... Bxh4 {[%clk 0:00:17.9]} 33. Rxe3
{[%clk 0:00:21.2]} 33... Bf6 {[%clk 0:00:16.8]} 34. Kf3 {[%clk 0:00:21.5]} 34...
Ra3 {[%clk 0:00:16.2]} 35. Rb1 {[%clk 0:00:19.5]} 35... Kh7 {[%clk 0:00:12.2]}
36. Rxb7 {[%clk 0:00:19.7]} 36... Bd4 {[%clk 0:00:13.2]} 37. Rb5 {[%clk
0:00:09.9]} 37... Bxe3 {[%clk 0:00:13.3]} 38. Rxh5+ {[%clk 0:00:07.6]} 38... Kg8
{[%clk 0:00:14.2]} 39. Ne5 {[%clk 0:00:08.4]} 39... Bd4+ {[%clk 0:00:13.1]} 40.
Ke4 {[%clk 0:00:09.3]} 40... Bxe5 {[%clk 0:00:14.1]} 41. Rxe5 {[%clk 0:00:07.8]}
41... Rgxg3 {[%clk 0:00:14]} 0-1

[Event "*** Titled Tuesday Blitz"]
[Site "Chess.com"]
[Date "2018.10.02"]
[Round "5"]
[White "kleinebeer98"]
[Black "severomorskij"]
[Result "1-0"]
[WhiteElo "2570"]
[BlackElo "2693"]
[TimeControl "180+2"]
[EndTime "14:04:09 PDT"]
[Termination "kleinebeer98 won on time"]

1. e4 {[%clk 0:02:59.9]} 1... c5 {[%clk 0:03:00]} 2. Nf3 {[%clk 0:03:00.3]} 2...
Nc6 {[%clk 0:02:59.5]} 3. c3 {[%clk 0:03:00.9]} 3... d5 {[%clk 0:02:59.5]} 4.
exd5 {[%clk 0:03:00.4]} 4... Qxd5 {[%clk 0:03:00.9]} 5. d4 {[%clk 0:03:02.3]}
5... Bf5 {[%clk 0:03:01.1]} 6. Be2 {[%clk 0:02:55.2]} 6... cxd4 {[%clk
0:02:59.6]} 7. cxd4 {[%clk 0:02:57.1]} 7... Bxb1 {[%clk 0:02:59.9]} 8. Rxb1
{[%clk 0:02:59]} 8... e6 {[%clk 0:03:01]} 9. O-O {[%clk 0:03:00.9]} 9... Nf6
{[%clk 0:03:01.8]} 10. b4 {[%clk 0:02:58.3]} 10... Bd6 {[%clk 0:03:02.5]} 11. b5
{[%clk 0:02:53.8]} 11... Ne7 {[%clk 0:03:01.2]} 12. Bg5 {[%clk 0:02:44.3]} 12...
Ne4 {[%clk 0:02:45]} 13. Bxe7 {[%clk 0:02:28.7]} 13... Kxe7 {[%clk 0:02:26.5]}
14. Rb3 {[%clk 0:02:21.6]} 14... Rhc8 {[%clk 0:02:24.7]} 15. Bd3 {[%clk
0:02:08]} 15... Nf6 {[%clk 0:02:23.9]} 16. Re1 {[%clk 0:02:00.7]} 16... Kf8
{[%clk 0:02:24.9]} 17. a4 {[%clk 0:01:45.5]} 17... g6 {[%clk 0:02:16]} 18. Bb1
{[%clk 0:01:38.1]} 18... Rc4 {[%clk 0:01:51.7]} 19. Rb2 {[%clk 0:01:31.9]} 19...
Rc7 {[%clk 0:01:21.8]} 20. Ba2 {[%clk 0:01:27.3]} 20... Qh5 {[%clk 0:01:22.5]}
21. Rbe2 {[%clk 0:01:21.7]} 21... Nd5 {[%clk 0:01:18.1]} 22. Bxd5 {[%clk
0:01:15.6]} 22... Qxd5 {[%clk 0:01:18.1]} 23. Ne5 {[%clk 0:01:14.9]} 23... Rac8
{[%clk 0:01:17.4]} 24. Qd2 {[%clk 0:01:06.2]} 24... Bxe5 {[%clk 0:00:40.3]} 25.
Rxe5 {[%clk 0:01:05.7]} 25... Qd6 {[%clk 0:00:34.8]} 26. d5 {[%clk 0:00:35.5]}
26... Kg8 {[%clk 0:00:23.5]} 27. Qf4 {[%clk 0:00:32.1]} 27... Rc4 {[%clk
0:00:20.3]} 28. Qg5 {[%clk 0:00:14.9]} 28... exd5 {[%clk 0:00:14.5]} 29. Rxd5
{[%clk 0:00:16.8]} 29... Qb4 {[%clk 0:00:10.9]} 30. Red1 {[%clk 0:00:13.5]}
30... Qb2 {[%clk 0:00:06.4]} 31. h4 {[%clk 0:00:07]} 31... Rc1 {[%clk
0:00:05.7]} 32. h5 {[%clk 0:00:05.6]} 32... Rxd1+ {[%clk 0:00:05]} 33. Rxd1
{[%clk 0:00:07.5]} 33... Qc3 {[%clk 0:00:04.1]} 34. h6 {[%clk 0:00:06.7]} 1-0

[Event "*** Titled Tuesday Blitz"]
[Site "Chess.com"]
[Date "2018.10.02"]
[Round "5"]
[White "LucaBrasi1968"]
[Black "plouarzel"]
[Result "0-1"]
[WhiteElo "2432"]
[BlackElo "2598"]
[TimeControl "180+2"]
[EndTime "14:04:09 PDT"]
[Termination "plouarzel won on time"]

1. d4 {[%clk 0:03:01.9]} 1... d6 {[%clk 0:03:01]} 2. Nf3 {[%clk 0:02:59.4]} 2...
Nf6 {[%clk 0:03:00.3]} 3. Bg5 {[%clk 0:02:55.4]} 3... Nbd7 {[%clk 0:02:58.6]} 4.
e3 {[%clk 0:02:56]} 4... h6 {[%clk 0:02:55.7]} 5. Bh4 {[%clk 0:02:56.4]} 5... g5
{[%clk 0:02:57.1]} 6. Bg3 {[%clk 0:02:57.3]} 6... Bg7 {[%clk 0:02:59]} 7. Bd3
{[%clk 0:02:57.4]} 7... Nh5 {[%clk 0:03:00.5]} 8. c3 {[%clk 0:02:55.2]} 8... c6
{[%clk 0:03:01.9]} 9. Nbd2 {[%clk 0:02:52.2]} 9... Ndf6 {[%clk 0:03:01.8]} 10.
Ng1 {[%clk 0:02:46.3]} 10... Nxg3 {[%clk 0:02:55.1]} 11. hxg3 {[%clk 0:02:46.5]}
11... e5 {[%clk 0:02:56.7]} 12. dxe5 {[%clk 0:02:45]} 12... dxe5 {[%clk
0:02:58.6]} 13. Qc2 {[%clk 0:02:44.3]} 13... Qe7 {[%clk 0:02:53.1]} 14. Bf5
{[%clk 0:02:40.7]} 14... Be6 {[%clk 0:02:51.7]} 15. Bxe6 {[%clk 0:02:41.7]}
15... Qxe6 {[%clk 0:02:53.2]} 16. e4 {[%clk 0:02:37.1]} 16... O-O-O {[%clk
0:02:52.9]} 17. f3 {[%clk 0:02:33.4]} 17... h5 {[%clk 0:02:51.3]} 18. Ne2 {[%clk
0:02:33.8]} 18... h4 {[%clk 0:02:50]} 19. g4 {[%clk 0:02:33]} 19... Bf8 {[%clk
0:02:46.8]} 20. Qb3 {[%clk 0:02:28.2]} 20... Bc5 {[%clk 0:02:42]} 21. Qxe6+
{[%clk 0:02:27.7]} 21... fxe6 {[%clk 0:02:43.9]} 22. Nc4 {[%clk 0:02:28.2]}
22... Nd7 {[%clk 0:02:42.8]} 23. O-O-O {[%clk 0:02:24]} 23... Kc7 {[%clk
0:02:42.1]} 24. b4 {[%clk 0:02:19.5]} 24... Be7 {[%clk 0:02:37.2]} 25. Kc2
{[%clk 0:02:19.2]} 25... b5 {[%clk 0:02:37.4]} 26. Nb2 {[%clk 0:02:19.7]} 26...
a5 {[%clk 0:02:35.6]} 27. a3 {[%clk 0:02:19.6]} 27... Ra8 {[%clk 0:02:32.7]} 28.
Nc1 {[%clk 0:02:04.3]} 28... c5 {[%clk 0:02:26.4]} 29. Ncd3 {[%clk 0:01:39.6]}
29... axb4 {[%clk 0:02:22.2]} 30. axb4 {[%clk 0:01:39.6]} 30... c4 {[%clk
0:02:23.5]} 31. Nf2 {[%clk 0:01:28]} 31... Ra2 {[%clk 0:02:07.6]} 32. Ra1 {[%clk
0:01:27.9]} 32... Rha8 {[%clk 0:02:08.4]} 33. Rxa2 {[%clk 0:01:28.6]} 33... Rxa2
{[%clk 0:02:10.3]} 34. Kb1 {[%clk 0:01:29.7]} 34... Ra3 {[%clk 0:02:07.7]} 35.
Kc2 {[%clk 0:01:25.2]} 35... Nb8 {[%clk 0:02:00.7]} 36. Nh3 {[%clk 0:01:18.4]}
36... Nc6 {[%clk 0:02:00.4]} 37. Rd1 {[%clk 0:01:15.8]} 37... Bxb4 {[%clk
0:01:52.6]} 38. cxb4 {[%clk 0:01:15.7]} 38... Nxb4+ {[%clk 0:01:54.5]} 39. Kb1
{[%clk 0:01:16.6]} 39... c3 {[%clk 0:01:55.7]} 40. Rc1 {[%clk 0:01:16.7]} 40...
Kb6 {[%clk 0:01:52]} 41. Nd1 {[%clk 0:01:01.5]} 41... Rb3+ {[%clk 0:01:32.9]}
42. Ka1 {[%clk 0:01:01.2]} 42... Ra3+ {[%clk 0:01:10.2]} 43. Kb1 {[%clk
0:01:01.2]} 43... Rb3+ {[%clk 0:01:06.7]} 44. Ka1 {[%clk 0:01:02.1]} 44... c2
{[%clk 0:01:08.3]} 45. Ndf2 {[%clk 0:00:59.8]} 45... Ka5 {[%clk 0:01:04.4]} 46.
Nxg5 {[%clk 0:01:00.3]} 46... Ka4 {[%clk 0:00:57.2]} 47. Nxe6 {[%clk 0:01:01.3]}
47... Ka3 {[%clk 0:00:51.1]} 48. Nc7 {[%clk 0:00:19.7]} 48... Rb2 {[%clk
0:00:51.6]} 49. Nxb5+ {[%clk 0:00:20.5]} 49... Kb3 {[%clk 0:00:52.9]} 0-1

[Event "*** Titled Tuesday Blitz"]
[Site "Chess.com"]
[Date "2018.10.02"]
[Round "5"]
[White "lucasmito"]
[Black "senecacrane"]
[Result "0-1"]
[WhiteElo "2371"]
[BlackElo "2173"]
[TimeControl "180+2"]
[EndTime "14:04:17 PDT"]
[Termination "senecacrane won by checkmate"]

1. e4 {[%clk 0:03:01.9]} 1... c6 {[%clk 0:03:00.7]} 2. d4 {[%clk 0:03:02.6]}
2... d5 {[%clk 0:03:02.6]} 3. Nc3 {[%clk 0:03:04.1]} 3... dxe4 {[%clk
0:03:03.6]} 4. Nxe4 {[%clk 0:03:06]} 4... Bf5 {[%clk 0:03:05.2]} 5. Ng3 {[%clk
0:03:07.4]} 5... Bg6 {[%clk 0:03:06.5]} 6. h4 {[%clk 0:03:09.3]} 6... h6 {[%clk
0:03:07.3]} 7. h5 {[%clk 0:03:11.2]} 7... Bh7 {[%clk 0:03:08.2]} 8. Nf3 {[%clk
0:03:13.1]} 8... Nd7 {[%clk 0:03:08.7]} 9. Bd3 {[%clk 0:03:15]} 9... Bxd3 {[%clk
0:03:09.6]} 10. Qxd3 {[%clk 0:03:16.9]} 10... Qc7 {[%clk 0:03:11.3]} 11. Bd2
{[%clk 0:03:18.8]} 11... Ngf6 {[%clk 0:03:11.5]} 12. O-O-O {[%clk 0:03:19.8]}
12... e6 {[%clk 0:03:12.7]} 13. Kb1 {[%clk 0:03:21.1]} 13... O-O-O {[%clk
0:03:13.3]} 14. Ne4 {[%clk 0:03:22.4]} 14... Be7 {[%clk 0:03:03.8]} 15. c4
{[%clk 0:03:22.5]} 15... c5 {[%clk 0:03:01.9]} 16. Bc3 {[%clk 0:03:20.3]} 16...
cxd4 {[%clk 0:02:46]} 17. Bxd4 {[%clk 0:03:18]} 17... Nc5 {[%clk 0:02:36.1]} 18.
Nxc5 {[%clk 0:03:18.9]} 18... Bxc5 {[%clk 0:02:36.9]} 19. Qe2 {[%clk 0:03:03.5]}
19... Bxd4 {[%clk 0:01:40.4]} 20. Nxd4 {[%clk 0:03:05.4]} 20... Qc5 {[%clk
0:01:32.3]} 21. Rh4 {[%clk 0:02:35.9]} 21... Rd7 {[%clk 0:01:26.7]} 22. Nc2
{[%clk 0:02:23.4]} 22... Rhd8 {[%clk 0:01:25.6]} 23. Rxd7 {[%clk 0:02:23.2]}
23... Rxd7 {[%clk 0:01:27.5]} 24. a3 {[%clk 0:02:06.4]} 24... Qf5 {[%clk
0:01:10.1]} 25. Ka2 {[%clk 0:02:04.8]} 25... Qg5 {[%clk 0:01:02.2]} 26. Rd4
{[%clk 0:01:27.9]} 26... Rxd4 {[%clk 0:00:57.8]} 27. Nxd4 {[%clk 0:01:29.8]}
27... Qxh5 {[%clk 0:00:56.2]} 28. f3 {[%clk 0:01:30.9]} 28... Qc5 {[%clk
0:00:55]} 29. Nb3 {[%clk 0:01:30]} 29... Qc7 {[%clk 0:00:50]} 30. c5 {[%clk
0:01:29.2]} 30... Nd7 {[%clk 0:00:48.6]} 31. Qe3 {[%clk 0:01:26.5]} 31... Qc6
{[%clk 0:00:45.4]} 32. Qd4 {[%clk 0:01:10.1]} 32... e5 {[%clk 0:00:37.5]} 33.
Qg4 {[%clk 0:01:11.3]} 33... g6 {[%clk 0:00:29]} 34. Qc4 {[%clk 0:01:03.8]}
34... Qe6 {[%clk 0:00:21]} 35. Qc1 {[%clk 0:00:54.3]} 35... Kc7 {[%clk
0:00:21.5]} 36. a4 {[%clk 0:00:34.9]} 36... h5 {[%clk 0:00:21.9]} 37. Ka3 {[%clk
0:00:36]} 37... Qd5 {[%clk 0:00:20.7]} 38. Qe3 {[%clk 0:00:34.2]} 38... f5
{[%clk 0:00:21.2]} 39. Qg5 {[%clk 0:00:34.6]} 39... Nxc5 {[%clk 0:00:21.6]} 40.
Qe7+ {[%clk 0:00:35.3]} 40... Kb6 {[%clk 0:00:22.4]} 41. a5+ {[%clk 0:00:31.2]}
41... Kb5 {[%clk 0:00:23.6]} 42. Qe8+ {[%clk 0:00:32.2]} 42... Ka6 {[%clk
0:00:24.2]} 43. Qxg6+ {[%clk 0:00:28.5]} 43... b6 {[%clk 0:00:24.5]} 44. Nxc5+
{[%clk 0:00:19.4]} 44... Qxc5+ {[%clk 0:00:26.1]} 45. b4 {[%clk 0:00:20.9]}
45... Qc3+ {[%clk 0:00:26.7]} 46. Ka4 {[%clk 0:00:22.2]} 46... Qc2+ {[%clk
0:00:26.8]} 47. Ka3 {[%clk 0:00:22.7]} 47... Qc1+ {[%clk 0:00:27.3]} 48. Ka4
{[%clk 0:00:23.6]} 48... Qa1+ {[%clk 0:00:28.2]} 49. Kb3 {[%clk 0:00:24.4]}
49... Qb1+ {[%clk 0:00:29.3]} 50. Ka4 {[%clk 0:00:25.6]} 50... Qa2# {[%clk
0:00:30.6]} 0-1